[Event "December 12 Early 2023"]
[Site "https://www.chess.com"]
[Date "2023.12.12"]
[Round "3"]
[White "Kiremitciyan, Ari"]
[Black "Mejia, Cherry Ann"]
[Result "1-0"]
[Board "200"]
[TimeControl "180+1"]
[WhiteFideId "6373445"]
[BlackFideId "5206880"]
[WhiteElo "2453"]
[BlackElo "2271"]
[WhiteTeam "TUR"]
[BlackTeam "PHI"]
[WhiteClock "0:00:07"]
[BlackClock "0:00:00"]

1. e4 {[%clk 0:03:00]}  c5 {[%clk 0:02:57]} 2. Nf3 {[%clk 0:03:00]}  Nc6 {[%clk 0:02:56]} 3. Bb5 {[%clk 0:02:59]}  Qb6 {[%clk 0:02:54]} 4. Bxc6 {[%clk 0:02:58]}  Qxc6 {[%clk 0:02:55]} 5. d3 {[%clk 0:02:56]}  d5 {[%clk 0:02:50]} 6. Nc3 {[%clk 0:02:39]}  dxe4 {[%clk 0:02:39]} 7. dxe4 {[%clk 0:02:40]}  Bg4 {[%clk 0:02:38]} 8. h3 {[%clk 0:02:39]}  Rd8 {[%clk 0:02:36]} 9. Qe2 {[%clk 0:02:38]}  Bh5 {[%clk 0:02:35]} 10. g4 {[%clk 0:01:57]}  Bg6 {[%clk 0:02:33]} 11. Ne5 {[%clk 0:01:58]}  Qa6 {[%clk 0:02:32]} 12. Qxa6 {[%clk 0:01:55]}  bxa6 {[%clk 0:02:33]} 13. Be3 {[%clk 0:01:42]}  e6 {[%clk 0:02:28]} 14. Ke2 {[%clk 0:01:34]}  Nf6 {[%clk 0:02:26]} 15. f3 {[%clk 0:01:33]}  Bd6 {[%clk 0:02:22]} 16. Nc4 {[%clk 0:01:33]}  Be7 {[%clk 0:02:17]} 17. Rhd1 {[%clk 0:01:25]}  O-O {[%clk 0:02:17]} 18. Rxd8 {[%clk 0:01:25]}  Rxd8 {[%clk 0:02:17]} 19. Rd1 {[%clk 0:01:25]}  Rb8 {[%clk 0:02:17]} 20. b3 {[%clk 0:01:23]}  h6 {[%clk 0:01:43]} 21. Na4 {[%clk 0:01:22]}  Bxe4 {[%clk 0:01:31]} 22. fxe4 {[%clk 0:01:20]}  Nxe4 {[%clk 0:01:32]} 23. Rd7 {[%clk 0:01:14]}  Kf8 {[%clk 0:01:18]} 24. Rxa7 {[%clk 0:00:53]}  f5 {[%clk 0:01:18]} 25. Ne5 {[%clk 0:00:48]}  Re8 {[%clk 0:01:01]} 26. Ng6+ {[%clk 0:00:39]}  Kf7 {[%clk 0:01:01]} 27. Rxe7+ {[%clk 0:00:40]}  Rxe7 {[%clk 0:01:00]} 28. Nxe7 {[%clk 0:00:40]}  Kxe7 {[%clk 0:01:01]} 29. Nxc5 {[%clk 0:00:40]}  Nc3+ {[%clk 0:01:00]} 30. Kf3 {[%clk 0:00:36]}  a5 {[%clk 0:00:56]} 31. a4 {[%clk 0:00:35]}  Nd5 {[%clk 0:00:37]} 32. Nb7 {[%clk 0:00:32]}  g5 {[%clk 0:00:28]} 33. Nxa5 {[%clk 0:00:31]}  f4 {[%clk 0:00:29]} 34. Bc5+ {[%clk 0:00:31]}  Kd7 {[%clk 0:00:28]} 35. Nc4 {[%clk 0:00:27]}  Kc6 {[%clk 0:00:27]} 36. b4 {[%clk 0:00:27]}  Nc3 {[%clk 0:00:23]} 37. Ne5+ {[%clk 0:00:25]}  Kd5 {[%clk 0:00:23]} 38. Nf7 {[%clk 0:00:23]}  e5 {[%clk 0:00:20]} 39. Nxe5 {[%clk 0:00:17]}  Kxe5 {[%clk 0:00:21]} 40. a5 {[%clk 0:00:18]}  Kd5 {[%clk 0:00:16]} 41. a6 {[%clk 0:00:18]}  Kc6 {[%clk 0:00:16]} 42. Bf8 {[%clk 0:00:16]}  Nb5 {[%clk 0:00:14]} 43. Bxh6 {[%clk 0:00:12]}  Nd4+ {[%clk 0:00:14]} 44. Ke4 {[%clk 0:00:13]}  Nxc2 {[%clk 0:00:10]} 45. Bxg5 {[%clk 0:00:13]}  Nxb4 {[%clk 0:00:11]} 46. a7 {[%clk 0:00:12]}  Kb7 {[%clk 0:00:07]} 47. Bxf4 {[%clk 0:00:12]}  Kxa7 {[%clk 0:00:08]} 48. g5 {[%clk 0:00:10]}  Nc6 {[%clk 0:00:07]} 49. g6 {[%clk 0:00:10]}  Ne7 {[%clk 0:00:07]} 50. g7 {[%clk 0:00:08]}  Kb7 {[%clk 0:00:07]} 51. Bg5 {[%clk 0:00:07]}  Ng8 {[%clk 0:00:07]} 52. Kd5 {[%clk 0:00:07]}  Kc8 {[%clk 0:00:07]} 53. Ke6 {[%clk 0:00:08]}  Kc7 {[%clk 0:00:02]} 54. Kf7 {[%clk 0:00:08]}  Kd7 {[%clk 0:00:02]} 55. Kxg8 {[%clk 0:00:08]}  Ke6 {[%clk 0:00:02]} 56. Kf8 {[%clk 0:00:08]}  Kf5 {[%clk 0:00:02]} 57. g8=Q {[%clk 0:00:07]}  Ke4 {[%clk 0:00:00]} 58. Qf7 {[%clk 0:00:07]} 1-0

[Event "December 12 Early 2023"]
[Site "https://www.chess.com"]
[Date "2023.12.12"]
[Round "3"]
[White "Pak, Yevgeniy"]
[Black "Minina, Veronika"]
[Result "1-0"]
[Board "201"]
[TimeControl "180+1"]
[WhiteFideId "14201712"]
[BlackFideId "4174780"]
[WhiteElo "2451"]
[BlackElo "2246"]
[WhiteTeam "KAZ"]
[BlackTeam "RUS"]
[WhiteClock "0:00:40"]
[BlackClock "0:00:03"]

1. e4 {[%clk 0:03:00]}  c5 {[%clk 0:02:49]} 2. c3 {[%clk 0:02:59]}  Nf6 {[%clk 0:02:43]} 3. e5 {[%clk 0:02:59]}  Nd5 {[%clk 0:02:43]} 4. d4 {[%clk 0:02:59]}  cxd4 {[%clk 0:02:41]} 5. Nf3 {[%clk 0:03:00]}  Nc6 {[%clk 0:02:40]} 6. cxd4 {[%clk 0:03:00]}  d6 {[%clk 0:02:39]} 7. Bc4 {[%clk 0:02:33]}  Nb6 {[%clk 0:02:39]} 8. Bb3 {[%clk 0:02:29]}  dxe5 {[%clk 0:02:35]} 9. Nxe5 {[%clk 0:02:26]}  Nxe5 {[%clk 0:02:28]} 10. dxe5 {[%clk 0:02:26]}  Qxd1+ {[%clk 0:02:27]} 11. Bxd1 {[%clk 0:02:27]}  Bd7 {[%clk 0:02:07]} 12. Bf3 {[%clk 0:02:21]}  Rc8 {[%clk 0:02:07]} 13. Nc3 {[%clk 0:02:19]}  Bc6 {[%clk 0:02:05]} 14. Bxc6+ {[%clk 0:02:15]}  Rxc6 {[%clk 0:02:06]} 15. Be3 {[%clk 0:02:13]}  e6 {[%clk 0:02:06]} 16. Bxb6 {[%clk 0:02:06]}  Rxb6 {[%clk 0:02:05]} 17. O-O-O {[%clk 0:02:04]}  Bb4 {[%clk 0:01:46]} 18. Ne4 {[%clk 0:02:01]}  O-O {[%clk 0:01:45]} 19. Rd7 {[%clk 0:01:58]}  Rc8+ {[%clk 0:01:27]} 20. Kb1 {[%clk 0:01:58]}  Ba3 {[%clk 0:01:27]} 21. b3 {[%clk 0:01:57]}  Rbc6 {[%clk 0:01:23]} 22. Rdd1 {[%clk 0:01:52]}  Rc2 {[%clk 0:01:23]} 23. Rd8+ {[%clk 0:01:49]}  Rxd8 {[%clk 0:01:22]} 24. Kxc2 {[%clk 0:01:49]}  Rd5 {[%clk 0:01:13]} 25. f4 {[%clk 0:01:48]}  Rd4 {[%clk 0:01:11]} 26. Re1 {[%clk 0:01:44]}  Bb4 {[%clk 0:01:09]} 27. Re2 {[%clk 0:01:42]}  Kf8 {[%clk 0:01:07]} 28. Kb2 {[%clk 0:01:38]}  Ke8 {[%clk 0:00:57]} 29. a3 {[%clk 0:01:30]}  Be7 {[%clk 0:00:55]} 30. Kc3 {[%clk 0:01:29]}  Rd1 {[%clk 0:00:54]} 31. a4 {[%clk 0:01:29]}  a5 {[%clk 0:00:49]} 32. Kc4 {[%clk 0:01:23]}  Bb4 {[%clk 0:00:38]} 33. Re3 {[%clk 0:01:16]}  h6 {[%clk 0:00:24]} 34. Kb5 {[%clk 0:01:00]}  Kd7 {[%clk 0:00:23]} 35. Kb6 {[%clk 0:00:54]}  Kc8 {[%clk 0:00:21]} 36. Re2 {[%clk 0:00:54]}  Kb8 {[%clk 0:00:19]} 37. Rc2 {[%clk 0:00:52]}  Rd3 {[%clk 0:00:16]} 38. Rc7 {[%clk 0:00:50]}  Rxb3 {[%clk 0:00:14]} 39. Rxb7+ {[%clk 0:00:49]}  Kc8 {[%clk 0:00:14]} 40. Rxf7 {[%clk 0:00:50]}  Be1+ {[%clk 0:00:09]} 41. Kc6 {[%clk 0:00:47]}  Kb8 {[%clk 0:00:07]} 42. Nc5 {[%clk 0:00:46]}  Rc3 {[%clk 0:00:03]} 43. Kb6 {[%clk 0:00:40]}  Kc8 {[%clk 0:00:03]} 1-0

[Event "December 12 Early 2023"]
[Site "https://www.chess.com"]
[Date "2023.12.12"]
[Round "3"]
[White "Palmer, Reegan"]
[Black "Bogaudinov, Rushan"]
[Result "0-1"]
[Board "205"]
[TimeControl "180+1"]
[WhiteFideId "14322145"]
[BlackFideId "4129288"]
[WhiteElo "2226"]
[BlackElo "2431"]
[WhiteTeam "RSA"]
[BlackTeam "RUS"]
[WhiteClock "0:00:04"]
[BlackClock "0:01:13"]

1. e4 {[%clk 0:02:57]}  a6 {[%clk 0:03:00]} 2. c4 {[%clk 0:02:54]}  c5 {[%clk 0:02:59]} 3. Nc3 {[%clk 0:02:54]}  e6 {[%clk 0:02:59]} 4. g3 {[%clk 0:02:55]}  h5 {[%clk 0:02:59]} 5. Bg2 {[%clk 0:02:56]}  h4 {[%clk 0:02:59]} 6. g4 {[%clk 0:02:56]}  Nc6 {[%clk 0:02:59]} 7. h3 {[%clk 0:02:57]}  Nf6 {[%clk 0:02:58]} 8. d3 {[%clk 0:02:57]}  Be7 {[%clk 0:02:57]} 9. Nge2 {[%clk 0:02:58]}  d5 {[%clk 0:02:57]} 10. cxd5 {[%clk 0:02:53]}  exd5 {[%clk 0:02:57]} 11. g5 {[%clk 0:02:49]}  Nh5 {[%clk 0:02:55]} 12. exd5 {[%clk 0:02:49]}  Nd4 {[%clk 0:02:51]} 13. f4 {[%clk 0:02:37]}  O-O {[%clk 0:02:46]} 14. Nxd4 {[%clk 0:02:36]}  cxd4 {[%clk 0:02:46]} 15. Qxh5 {[%clk 0:02:37]}  dxc3 {[%clk 0:02:43]} 16. O-O {[%clk 0:02:00]}  Bf5 {[%clk 0:02:37]} 17. Qxh4 {[%clk 0:01:57]}  Bc5+ {[%clk 0:02:34]} 18. Kh2 {[%clk 0:01:56]}  Re8 {[%clk 0:02:30]} 19. Re1 {[%clk 0:01:42]}  Qb6 {[%clk 0:02:19]} 20. bxc3 {[%clk 0:01:01]}  Bf2 {[%clk 0:02:16]} 21. Rxe8+ {[%clk 0:01:01]}  Rxe8 {[%clk 0:02:17]} 22. Qh5 {[%clk 0:01:01]}  Re1 {[%clk 0:02:07]} 23. d4 {[%clk 0:00:29]}  Bg1+ {[%clk 0:01:55]} 24. Kg3 {[%clk 0:00:29]}  Qa5 {[%clk 0:01:31]} 25. Qf3 {[%clk 0:00:18]}  Be4 {[%clk 0:01:26]} 26. Qxe4 {[%clk 0:00:07]}  Rxe4 {[%clk 0:01:25]} 27. Bxe4 {[%clk 0:00:07]}  Qxc3+ {[%clk 0:01:24]} 28. Bf3 {[%clk 0:00:07]}  Qxa1 {[%clk 0:01:23]} 29. Ba3 {[%clk 0:00:08]}  Qxa2 {[%clk 0:01:21]} 30. Be7 {[%clk 0:00:07]}  Qf2+ {[%clk 0:01:17]} 31. Kg4 {[%clk 0:00:08]}  Qxd4 {[%clk 0:01:16]} 32. d6 {[%clk 0:00:08]}  Be3 {[%clk 0:01:13]} 33. Kg3 {[%clk 0:00:06]}  Bxf4+ {[%clk 0:01:13]} 34. Kg2 {[%clk 0:00:04]}  Bxd6 {[%clk 0:01:13]} 0-1

[Event "December 12 Early 2023"]
[Site "https://www.chess.com"]
[Date "2023.12.12"]
[Round "3"]
[White "Borawski, Jakub"]
[Black "Marchesich, Giovanni"]
[Result "0-1"]
[Board "209"]
[TimeControl "180+1"]
[WhiteFideId "1143000"]
[BlackFideId "2824790"]
[WhiteElo "2210"]
[BlackElo "2410"]
[WhiteTeam "POL"]
[BlackTeam "ITA"]
[WhiteClock "0:00:00"]
[BlackClock "0:00:30"]

1. e4 {[%clk 0:02:38]}  e5 {[%clk 0:02:59]} 2. Nf3 {[%clk 0:02:38]}  Nc6 {[%clk 0:02:59]} 3. Bb5 {[%clk 0:02:38]}  a6 {[%clk 0:02:59]} 4. Ba4 {[%clk 0:02:38]}  Bc5 {[%clk 0:02:59]} 5. O-O {[%clk 0:02:37]}  Nge7 {[%clk 0:03:00]} 6. c4 {[%clk 0:02:37]}  O-O {[%clk 0:02:57]} 7. Nc3 {[%clk 0:02:37]}  d6 {[%clk 0:02:56]} 8. d3 {[%clk 0:02:37]}  f5 {[%clk 0:02:55]} 9. Bg5 {[%clk 0:02:34]}  h6 {[%clk 0:02:38]} 10. Bxe7 {[%clk 0:02:24]}  Qxe7 {[%clk 0:02:39]} 11. Nd5 {[%clk 0:02:21]}  Qf7 {[%clk 0:02:39]} 12. Nd2 {[%clk 0:01:56]}  fxe4 {[%clk 0:02:32]} 13. Nxe4 {[%clk 0:01:56]}  Ba7 {[%clk 0:02:27]} 14. Bxc6 {[%clk 0:01:43]}  bxc6 {[%clk 0:02:26]} 15. Ne3 {[%clk 0:01:41]}  d5 {[%clk 0:02:20]} 16. Nd2 {[%clk 0:01:41]}  Be6 {[%clk 0:02:14]} 17. Qe2 {[%clk 0:01:39]}  Rae8 {[%clk 0:02:13]} 18. Rac1 {[%clk 0:01:34]}  Qg6 {[%clk 0:02:02]} 19. Kh1 {[%clk 0:01:32]}  Rf7 {[%clk 0:01:59]} 20. Nf3 {[%clk 0:01:15]}  Qf6 {[%clk 0:01:45]} 21. Nd2 {[%clk 0:01:10]}  Ref8 {[%clk 0:01:41]} 22. b4 {[%clk 0:00:58]}  Bd4 {[%clk 0:01:23]} 23. Kg1 {[%clk 0:00:51]}  Qg6 {[%clk 0:01:18]} 24. Kh1 {[%clk 0:00:46]}  Kh7 {[%clk 0:01:01]} 25. c5 {[%clk 0:00:34]}  Bxe3 {[%clk 0:00:58]} 26. fxe3 {[%clk 0:00:33]}  Bg4 {[%clk 0:00:55]} 27. Rxf7 {[%clk 0:00:20]}  Rxf7 {[%clk 0:00:54]} 28. Qe1 {[%clk 0:00:17]}  Qxd3 {[%clk 0:00:53]} 29. h3 {[%clk 0:00:18]}  Be2 {[%clk 0:00:47]} 30. e4 {[%clk 0:00:17]}  dxe4 {[%clk 0:00:43]} 31. Kh2 {[%clk 0:00:13]}  Qe3 {[%clk 0:00:42]} 32. Nc4 {[%clk 0:00:10]}  Qf4+ {[%clk 0:00:42]} 33. Kh1 {[%clk 0:00:08]}  Bxc4 {[%clk 0:00:41]} 34. Rxc4 {[%clk 0:00:07]}  Qf1+ {[%clk 0:00:39]} 35. Qxf1 {[%clk 0:00:08]}  Rxf1+ {[%clk 0:00:40]} 36. Kh2 {[%clk 0:00:08]}  Re1 {[%clk 0:00:38]} 37. Kg3 {[%clk 0:00:08]}  Kg6 {[%clk 0:00:36]} 38. Kf2 {[%clk 0:00:07]}  Ra1 {[%clk 0:00:35]} 39. Rxe4 {[%clk 0:00:07]}  Rxa2+ {[%clk 0:00:35]} 40. Kf3 {[%clk 0:00:07]}  Kf6 {[%clk 0:00:35]} 41. Re3 {[%clk 0:00:06]}  Ke6 {[%clk 0:00:32]} 42. Rd3 {[%clk 0:00:06]}  Ra4 {[%clk 0:00:30]} 43. Rb3 {[%clk 0:00:05]}  Kd5 {[%clk 0:00:29]} 44. Ke3 {[%clk 0:00:06]}  Kc4 {[%clk 0:00:29]} 45. Rb1 {[%clk 0:00:06]}  Rxb4 {[%clk 0:00:29]} 46. Rc1+ {[%clk 0:00:05]}  Kb5 {[%clk 0:00:30]} 47. g4 {[%clk 0:00:03]}  a5 {[%clk 0:00:30]} 48. Kf3 {[%clk 0:00:02]}  a4 {[%clk 0:00:30]} 49. h4 {[%clk 0:00:03]}  a3 {[%clk 0:00:30]} 50. Ra1 {[%clk 0:00:00]}  Ka4 {[%clk 0:00:30]} 0-1

[Event "December 12 Early 2023"]
[Site "https://www.chess.com"]
[Date "2023.12.12"]
[Round "3"]
[White "yaguigor"]
[Black "Fernandez Hernandez, Gerardo"]
[Result "1-0"]
[Board "211"]
[TimeControl "180+1"]
[BlackFideId "2207400"]
[WhiteElo "2409"]
[BlackElo "2179"]
[BlackTeam "ESP"]
[WhiteClock "0:00:42"]
[BlackClock "0:00:00"]

1. e4 {[%clk 0:02:42]}  e6 {[%clk 0:02:59]} 2. d4 {[%clk 0:02:41]}  d5 {[%clk 0:02:59]} 3. Bd3 {[%clk 0:02:41]}  c5 {[%clk 0:02:58]} 4. exd5 {[%clk 0:02:40]}  exd5 {[%clk 0:02:58]} 5. Nf3 {[%clk 0:02:38]}  c4 {[%clk 0:02:58]} 6. Be2 {[%clk 0:02:37]}  Bd6 {[%clk 0:02:53]} 7. b3 {[%clk 0:02:34]}  cxb3 {[%clk 0:02:51]} 8. axb3 {[%clk 0:02:34]}  Nc6 {[%clk 0:02:51]} 9. O-O {[%clk 0:02:32]}  Nf6 {[%clk 0:02:48]} 10. c4 {[%clk 0:02:33]}  Bf5 {[%clk 0:02:44]} 11. Nc3 {[%clk 0:02:32]}  Nb4 {[%clk 0:02:35]} 12. c5 {[%clk 0:02:22]}  Bc7 {[%clk 0:02:33]} 13. Bb5+ {[%clk 0:02:23]}  Bd7 {[%clk 0:02:14]} 14. Re1+ {[%clk 0:02:21]}  Kf8 {[%clk 0:02:13]} 15. Bg5 {[%clk 0:02:16]}  Nc6 {[%clk 0:01:25]} 16. Ne5 {[%clk 0:02:04]}  Nxe5 {[%clk 0:01:23]} 17. dxe5 {[%clk 0:02:04]}  h6 {[%clk 0:01:19]} 18. Bxf6 {[%clk 0:01:52]}  gxf6 {[%clk 0:01:19]} 19. Bxd7 {[%clk 0:01:52]}  Qxd7 {[%clk 0:01:12]} 20. exf6 {[%clk 0:01:53]}  Rd8 {[%clk 0:00:50]} 21. Qh5 {[%clk 0:01:46]}  Rh7 {[%clk 0:00:19]} 22. Re7 {[%clk 0:01:20]}  Qc6 {[%clk 0:00:17]} 23. Qf5 {[%clk 0:01:14]}  Rh8 {[%clk 0:00:11]} 24. b4 {[%clk 0:01:06]}  a6 {[%clk 0:00:09]} 25. Rd1 {[%clk 0:01:00]}  d4 {[%clk 0:00:08]} 26. Ne2 {[%clk 0:00:58]}  d3 {[%clk 0:00:05]} 27. Nf4 {[%clk 0:00:51]}  Bxf4 {[%clk 0:00:04]} 28. Qxf4 {[%clk 0:00:51]}  d2 {[%clk 0:00:00]} 29. h4 {[%clk 0:00:42]} 1-0

[Event "December 12 Early 2023"]
[Site "https://www.chess.com"]
[Date "2023.12.12"]
[Round "3"]
[White "Hartikainen, Jarmo"]
[Black "Karthik, Advaith"]
[Result "1-0"]
[Board "213"]
[TimeControl "180+1"]
[WhiteFideId "503134"]
[BlackFideId "30946050"]
[WhiteElo "2116"]
[BlackElo "2406"]
[WhiteTeam "FIN"]
[BlackTeam "USA"]
[WhiteClock "0:01:55"]
[BlackClock "0:01:59"]

1. e4 {[%clk 0:03:00]}  c5 {[%clk 0:02:58]} 2. c3 {[%clk 0:03:01]}  Nf6 {[%clk 0:02:56]} 3. e5 {[%clk 0:03:01]}  Nd5 {[%clk 0:02:57]} 4. d4 {[%clk 0:03:02]}  cxd4 {[%clk 0:02:57]} 5. Nf3 {[%clk 0:03:02]}  d6 {[%clk 0:02:57]} 6. cxd4 {[%clk 0:03:03]}  Nc6 {[%clk 0:02:56]} 7. Nc3 {[%clk 0:03:03]}  Nxc3 {[%clk 0:02:56]} 8. bxc3 {[%clk 0:03:04]}  dxe5 {[%clk 0:02:57]} 9. d5 {[%clk 0:03:03]}  e4 {[%clk 0:02:57]} 10. dxc6 {[%clk 0:03:03]}  Qxd1+ {[%clk 0:02:57]} 11. Kxd1 {[%clk 0:03:03]}  exf3 {[%clk 0:02:58]} 12. Bb5 {[%clk 0:03:03]}  Kd8 {[%clk 0:02:58]} 13. Bf4 {[%clk 0:03:03]}  e5 {[%clk 0:02:46]} 14. Bxe5 {[%clk 0:03:02]}  fxg2 {[%clk 0:02:46]} 15. c7+ {[%clk 0:02:49]}  Ke7 {[%clk 0:02:46]} 16. Rg1 {[%clk 0:02:46]}  f6 {[%clk 0:02:36]} 17. Bg3 {[%clk 0:02:35]}  Bg4+ {[%clk 0:02:36]} 18. Kc2 {[%clk 0:02:31]}  Bf5+ {[%clk 0:02:21]} 19. Kb2 {[%clk 0:02:29]}  Kf7 {[%clk 0:02:15]} 20. Rxg2 {[%clk 0:02:22]}  Bc5 {[%clk 0:02:14]} 21. f3 {[%clk 0:02:15]}  Rhc8 {[%clk 0:02:00]} 22. Bc4+ {[%clk 0:01:59]}  Be6 {[%clk 0:01:59]} 23. Bxe6+ {[%clk 0:01:58]}  Ke7 {[%clk 0:01:59]} 24. Bxc8 {[%clk 0:01:55]} 1-0

[Event "December 12 Early 2023"]
[Site "https://www.chess.com"]
[Date "2023.12.12"]
[Round "3"]
[White "Tymrakiewicz, Rafal"]
[Black "Perez Cruz, Adianet"]
[Result "1-0"]
[Board "216"]
[TimeControl "180+1"]
[WhiteFideId "1108832"]
[BlackFideId "3510115"]
[WhiteElo "2401"]
[BlackElo "2040"]
[WhiteTeam "POL"]
[BlackTeam "CUB"]
[WhiteClock "0:00:51"]
[BlackClock "0:00:19"]

1. d4 {[%clk 0:03:00]}  d5 {[%clk 0:02:59]} 2. Bg5 {[%clk 0:02:59]}  h6 {[%clk 0:02:59]} 3. Bh4 {[%clk 0:02:59]}  c6 {[%clk 0:02:59]} 4. e3 {[%clk 0:02:58]}  Nf6 {[%clk 0:02:59]} 5. Nf3 {[%clk 0:02:57]}  Bg4 {[%clk 0:02:59]} 6. c4 {[%clk 0:02:56]}  e6 {[%clk 0:02:58]} 7. Nc3 {[%clk 0:02:56]}  Nbd7 {[%clk 0:02:58]} 8. Qb3 {[%clk 0:02:51]}  Qb6 {[%clk 0:02:58]} 9. Nd2 {[%clk 0:02:47]}  Be7 {[%clk 0:02:55]} 10. h3 {[%clk 0:02:38]}  Bf5 {[%clk 0:02:54]} 11. Bg3 {[%clk 0:02:37]}  Ne4 {[%clk 0:02:53]} 12. Ndxe4 {[%clk 0:02:36]}  Bxe4 {[%clk 0:02:52]} 13. Nxe4 {[%clk 0:02:34]}  dxe4 {[%clk 0:02:53]} 14. Qxb6 {[%clk 0:02:24]}  axb6 {[%clk 0:02:52]} 15. Be2 {[%clk 0:02:22]}  O-O {[%clk 0:02:49]} 16. O-O {[%clk 0:02:20]}  Bf6 {[%clk 0:02:49]} 17. Rfd1 {[%clk 0:02:15]}  Rfd8 {[%clk 0:02:49]} 18. a3 {[%clk 0:01:42]}  e5 {[%clk 0:02:35]} 19. d5 {[%clk 0:01:27]}  Nc5 {[%clk 0:02:35]} 20. Rac1 {[%clk 0:01:25]}  Kf8 {[%clk 0:02:12]} 21. b4 {[%clk 0:01:24]}  Na6 {[%clk 0:01:30]} 22. Rd2 {[%clk 0:01:17]}  c5 {[%clk 0:01:18]} 23. Rb2 {[%clk 0:01:08]}  Rd6 {[%clk 0:00:42]} 24. Rcb1 {[%clk 0:01:00]}  g6 {[%clk 0:00:19]} 25. Kf1 {[%clk 0:00:52]}  Kg7 {[%clk 0:00:19]} 26. Ke1 {[%clk 0:00:53]}  Bd8 {[%clk 0:00:20]} 27. Bxe5+ {[%clk 0:00:51]}  f6 {[%clk 0:00:19]} 28. Bxd6 {[%clk 0:00:51]} 1-0

[Event "December 12 Early 2023"]
[Site "https://www.chess.com"]
[Date "2023.12.12"]
[Round "3"]
[White "Nikulina, Alena"]
[Black "Rosenberg, Evan S"]
[Result "1-0"]
[Board "217"]
[TimeControl "180+1"]
[WhiteFideId "4172051"]
[BlackFideId "2019299"]
[WhiteElo "2041"]
[BlackElo "2400"]
[WhiteTeam "RUS"]
[BlackTeam "USA"]
[WhiteClock "0:00:34"]
[BlackClock "0:01:18"]

1. e4 {[%clk 0:02:52]}  e5 {[%clk 0:02:59]} 2. Nf3 {[%clk 0:02:51]}  Nc6 {[%clk 0:03:00]} 3. Bb5 {[%clk 0:02:50]}  Nf6 {[%clk 0:03:00]} 4. O-O {[%clk 0:02:48]}  Nxe4 {[%clk 0:03:00]} 5. Re1 {[%clk 0:02:47]}  Nd6 {[%clk 0:03:00]} 6. a4 {[%clk 0:02:43]}  Be7 {[%clk 0:02:56]} 7. Nc3 {[%clk 0:02:42]}  O-O {[%clk 0:02:52]} 8. d4 {[%clk 0:02:40]}  exd4 {[%clk 0:02:50]} 9. Nd5 {[%clk 0:02:39]}  Bf6 {[%clk 0:02:44]} 10. Bf4 {[%clk 0:02:38]}  a6 {[%clk 0:02:28]} 11. Bd3 {[%clk 0:02:15]}  Re8 {[%clk 0:02:02]} 12. Nxf6+ {[%clk 0:01:14]}  Qxf6 {[%clk 0:01:58]} 13. Bxd6 {[%clk 0:01:06]}  Rxe1+ {[%clk 0:01:53]} 14. Qxe1 {[%clk 0:01:06]}  Qxd6 {[%clk 0:01:28]} 15. Qe8+ {[%clk 0:01:05]}  Qf8 {[%clk 0:01:29]} 16. Bxh7+ {[%clk 0:01:04]}  Kxh7 {[%clk 0:01:30]} 17. Qxf8 {[%clk 0:01:04]}  b6 {[%clk 0:01:27]} 18. Qxf7 {[%clk 0:00:51]}  Bb7 {[%clk 0:01:26]} 19. Re1 {[%clk 0:00:36]}  Rd8 {[%clk 0:01:18]} 20. Re4 {[%clk 0:00:34]} 1-0

[Event "December 12 Early 2023"]
[Site "https://www.chess.com"]
[Date "2023.12.12"]
[Round "3"]
[White "Bongo Akanga Ndjila, Barthelemy"]
[Black "Topalov, Aleksandar"]
[Result "0-1"]
[Board "221"]
[TimeControl "180+1"]
[WhiteFideId "10609431"]
[BlackFideId "925659"]
[WhiteElo "2014"]
[BlackElo "2377"]
[WhiteTeam "GAB"]
[BlackTeam "SRB"]
[WhiteClock "0:00:00"]
[BlackClock "0:00:18"]

1. d4 {[%clk 0:02:55]}  Nf6 {[%clk 0:02:57]} 2. c4 {[%clk 0:02:54]}  c5 {[%clk 0:02:55]} 3. d5 {[%clk 0:02:50]}  d6 {[%clk 0:02:54]} 4. Nc3 {[%clk 0:02:50]}  g6 {[%clk 0:02:51]} 5. e4 {[%clk 0:02:50]}  Bg7 {[%clk 0:02:51]} 6. Nge2 {[%clk 0:02:49]}  O-O {[%clk 0:02:49]} 7. Ng3 {[%clk 0:02:49]}  e6 {[%clk 0:02:48]} 8. Be2 {[%clk 0:02:48]}  exd5 {[%clk 0:02:43]} 9. cxd5 {[%clk 0:02:48]}  a6 {[%clk 0:02:37]} 10. a4 {[%clk 0:02:47]}  Re8 {[%clk 0:02:33]} 11. O-O {[%clk 0:02:47]}  Nbd7 {[%clk 0:02:27]} 12. Bg5 {[%clk 0:02:45]}  h6 {[%clk 0:02:24]} 13. Be3 {[%clk 0:02:45]}  h5 {[%clk 0:02:13]} 14. Bg5 {[%clk 0:02:08]}  Qb6 {[%clk 0:02:09]} 15. Qd2 {[%clk 0:02:03]}  Nh7 {[%clk 0:02:09]} 16. Bh4 {[%clk 0:01:51]}  Ne5 {[%clk 0:01:56]} 17. a5 {[%clk 0:01:46]}  Qc7 {[%clk 0:01:53]} 18. h3 {[%clk 0:01:27]}  c4 {[%clk 0:01:32]} 19. f4 {[%clk 0:01:26]}  Nd7 {[%clk 0:01:30]} 20. Ra4 {[%clk 0:01:04]}  Nc5 {[%clk 0:01:27]} 21. Rxc4 {[%clk 0:01:01]}  Qxa5 {[%clk 0:01:25]} 22. Bxh5 {[%clk 0:00:53]}  gxh5 {[%clk 0:01:20]} 23. Nxh5 {[%clk 0:00:52]}  Bxc3 {[%clk 0:01:10]} 24. bxc3 {[%clk 0:00:37]}  Nxe4 {[%clk 0:01:10]} 25. Qd4 {[%clk 0:00:36]}  f6 {[%clk 0:01:04]} 26. Bxf6 {[%clk 0:00:25]}  Nexf6 {[%clk 0:00:58]} 27. Nxf6+ {[%clk 0:00:20]}  Nxf6 {[%clk 0:00:56]} 28. Qxf6 {[%clk 0:00:20]}  Re3 {[%clk 0:00:33]} 29. Qg6+ {[%clk 0:00:15]}  Kf8 {[%clk 0:00:31]} 30. Qh6+ {[%clk 0:00:12]}  Ke8 {[%clk 0:00:29]} 31. Qxd6 {[%clk 0:00:06]}  Bd7 {[%clk 0:00:22]} 32. Qg6+ {[%clk 0:00:02]}  Kd8 {[%clk 0:00:21]} 33. Qg8+ {[%clk 0:00:02]}  Be8 {[%clk 0:00:19]} 34. Qg5+ {[%clk 0:00:00]}  Kd7 {[%clk 0:00:18]} 0-1